fUSD/lending_fUSD_20240923
["ID","MTS","AMOUNT","RATE_DAILY","PERIOD"]
[338954369,1727089832007,-108.64494124,0.00012438,2]
[338954370,1727089832016,-171.931792,0.00012438,2]
[338954371,1727089832026,-171.931792,0.00012438,2]
[338954372,1727089832035,-622.92147476,0.00012638,2]
[338954373,1727089832047,-1495.96532524,0.00012638,2]
[338954374,1727089832056,-1144.55330472,0.00012691,2]
[338954375,1727089832065,-1144.55330464,0.00012714,2]
[338954376,1727089832075,-1144.55330464,0.00012737,2]
[338954377,1727089832084,-171.931792,0.00012749,2]
[338954378,1727089832093,-1144.55330464,0.00012761,2]
[338954379,1727089832102,-315.76484291,0.00012776,2]
[338954380,1727089832111,-1144.55330464,0.00012784,2]
[338954381,1727089832121,-974.45480491,0.00012784,2]
[338954382,1727089832155,-328.4348001,0.00012784,2]
[338954383,1727089832166,-741.4673214,0.00012784,2]
[338954384,1727089832178,-447.36307359,0.00012784,2]
[338954385,1727089832187,-441.57,0.00012784,2]
[338954386,1727089832195,-150.0,0.0001279,2]
[338954387,1727089832205,-104.06692641,0.00012791,2]
[338954388,1727089832216,-791.79945132,0.00012791,2]
[338954389,1727089832236,-415.18275291,0.00012791,2]
[338954390,1727089832248,-358.03106852,0.00012791,2]
[338954391,1727089832268,-5409.42459508,0.00012791,2]
[338954392,1727089832280,-6960.74467116,0.00012791,2]
[338954393,1727089832291,-3828.51859484,0.00012791,2]
[338954394,1727089832302,-6225.7093259,0.00012791,2]
[338954396,1727089832325,-255.97559429,0.00012791,2]
[338954397,1727089832336,-298.62086198,0.00012791,2]
[338954399,1727089832348,-42000.99357282,0.00012791,2]
[338954401,1727089832359,-5042.14997284,0.00012791,2]
[338954402,1727089832373,-360.246502,0.00012791,2]
[338954403,1727089832383,-552.46305185,0.00012791,2]
[338954404,1727089832406,-849.97896667,0.00012791,2]
[338954405,1727089832417,-2345.65730651,0.00012791,2]
[338954406,1727089832430,-6178.9825058,0.00012791,2]
[338954407,1727089832441,-8606.23695535,0.00012791,2]
[338954408,1727089832455,-495.72833055,0.00012791,2]
[338954409,1727089832466,-2314.4383043,0.00012791,2]
[338954410,1727089832478,-3605.61418377,0.00012791,2]
[338954411,1727089832488,-328.01300429,0.00012791,2]
[338954412,1727089832516,-131701.196332,0.00012791,2]
[338954413,1727089832528,-315.76484285,0.00012794,2]
[338954414,1727089832538,-847.8,0.00012794,2]
[338954415,1727089832548,-153.23984907,0.00012796,2]
[338954416,1727089832557,-150.0,0.000128,2]
[338954417,1727089832566,-152.99,0.000128,2]
[338954418,1727089832575,-1144.55330464,0.00012807,2]
[338954419,1727089832585,-315.76484285,0.00012811,2]
[338954420,1727089832594,-315.76484285,0.00012829,2]
[338954421,1727089832605,-1144.55330464,0.0001283,2]
[338954422,1727089832615,-421.86233158,0.00012846,2]
[338954423,1727089832625,-315.76484285,0.00012847,2]
[338954424,1727089832634,-1144.55330464,0.00012854,2]
[338954425,1727089832643,-315.76484285,0.00012865,2]
[338954426,1727089832653,-216.748727,0.00012866,2]
[338954427,1727089832662,-153.63,0.00012866,2]
[338954428,1727089832671,-621.0,0.00012867,2]
[338954429,1727089832680,-1258.0,0.00012867,2]
[338954430,1727089832689,-150.0,0.00012867,2]
[338954431,1727089832699,-558.0,0.00012867,2]
[338954432,1727089832708,-810.0,0.00012867,2]
[338954433,1727089832718,-1888.605,0.00012867,2]
[338954434,1727089832727,-553.0,0.00012867,2]
[338954435,1727089832736,-3335.0,0.00012867,2]
[338954436,1727089832747,-248.0,0.00012867,2]
[338954437,1727089832763,-806.0,0.00012867,2]
[338954438,1727089832772,-162.787,0.00012867,2]
[338954439,1727089832781,-500.0,0.00012873,2]
[338954440,1727089832790,-500.0,0.00012873,2]
[338954441,1727089832799,-500.0,0.00012876,2]
[338954442,1727089832809,-500.0,0.00012876,2]
[338954443,1727089832819,-500.0,0.00012876,2]
[338954444,1727089832828,-500.0,0.00012876,2]
[338954445,1727089832837,-500.0,0.00012876,2]
[338954446,1727089832847,-500.0,0.00012876,2]
[338954447,1727089832855,-500.0,0.00012876,2]
[338954448,1727089832864,-500.0,0.00012876,2]
[338954449,1727089832874,-542.03,0.00012876,2]
[338954450,1727089832883,-542.03,0.00012876,2]
[338954451,1727089832892,-172.35087236,0.00012876,2]
[338954452,1727089832902,-500.0,0.00012876,2]
[338954453,1727089832913,-500.0,0.00012876,2]
[338954454,1727089832922,-500.0,0.00012876,2]
[338954455,1727089832932,-500.0,0.00012876,2]
[338954456,1727089832942,-500.0,0.00012876,2]
[338954457,1727089832952,-500.0,0.00012876,2]
[338954458,1727089832964,-500.0,0.00012876,2]
[338954459,1727089832973,-500.0,0.00012876,2]
[338954460,1727089832983,-500.0,0.00012876,2]
[338954461,1727089832994,-500.0,0.00012876,2]
[338954462,1727089833003,-500.0,0.00012876,2]
[338954463,1727089833012,-500.0,0.00012876,2]
[338954464,1727089833022,-500.0,0.00012876,2]
[338954465,1727089833032,-500.0,0.00012876,2]
[338954466,1727089833041,-500.0,0.00012876,2]
[338954467,1727089833051,-500.0,0.00012876,2]
[338954468,1727089833060,-500.0,0.00012876,2]
[338954469,1727089833070,-500.0,0.00012876,2]
[338954470,1727089833080,-500.0,0.00012876,2]
[338954471,1727089833090,-500.0,0.00012876,2]
[338954472,1727089833100,-500.0,0.00012876,2]
[338954473,1727089833109,-339.34499886,0.00012876,2]
[338954474,1727089833123,-160.65500114,0.00012876,2]
[338954475,1727089833133,-465.29,0.00012876,2]
[338954476,1727089833143,-500.0,0.00012876,2]
[338954477,1727089833153,-535.07347653,0.00012876,2]
[338954478,1727089833162,-500.0,0.00012876,2]
[338954479,1727089833172,-500.0,0.00012876,2]
[338954480,1727089833181,-445.33,0.00012876,2]
[338954481,1727089833191,-248.0447549,0.00012876,2]
[338954482,1727089833200,-500.0,0.00012876,2]
[338954483,1727089833210,-500.0,0.00012876,2]
[338954484,1727089833219,-316.1881711,0.00012876,2]
[338954489,1727089838275,-183.8118289,0.00012876,2]
[338954490,1727089838286,-500.0,0.00012876,2]
[338954491,1727089838296,-500.0,0.00012876,2]
[338954492,1727089838306,-500.0,0.00012876,2]
[338954493,1727089838315,-500.47800713,0.00012876,2]
[338954494,1727089838325,-500.0,0.00012876,2]
[338954495,1727089838335,-500.0,0.00012876,2]
[338954496,1727089838344,-500.0,0.00012876,2]
[338954497,1727089838354,-1170.43,0.00012876,2]
[338954498,1727089838364,-1170.43,0.00012876,2]
[338954499,1727089838375,-1170.43,0.00012876,2]
[338954500,1727089838384,-1167.25,0.00012876,2]
[338954501,1727089838394,-1167.25,0.00012876,2]
[338954502,1727089838403,-1167.25,0.00012876,2]
[338954503,1727089838412,-500.0,0.00012876,2]
[338954504,1727089838422,-500.0,0.00012876,2]
[338954505,1727089838432,-716.75,0.00012876,2]
[338954506,1727089838441,-716.75,0.00012876,2]
[338954507,1727089838453,-716.75,0.00012876,2]
[338954508,1727089838463,-641.4013441,0.00012876,2]
[338954509,1727089838473,-500.0,0.00012876,2]
[338954510,1727089838483,-500.0,0.00012876,2]
[338954511,1727089838494,-500.0,0.00012876,2]
[338954512,1727089838505,-500.0,0.00012876,2]
[338954513,1727089838515,-500.0,0.00012876,2]
[338954514,1727089838526,-500.0,0.00012876,2]
[338954515,1727089838536,-500.0,0.00012876,2]
[338954516,1727089838546,-500.0,0.00012876,2]
[338954518,1727089838555,-628.36,0.00012876,2]
[338954519,1727089838565,-500.0,0.00012876,2]
[338954521,1727089838575,-628.36,0.00012876,2]
[338954523,1727089838585,-500.0,0.00012876,2]
[338954525,1727089838595,-628.36,0.00012876,2]
[338954527,1727089838605,-500.0,0.00012876,2]
[338954529,1727089838614,-500.0,0.00012876,2]
[338954531,1727089838624,-500.0,0.00012876,2]
[338954533,1727089838635,-500.0,0.00012876,2]
[338954535,1727089838644,-1534.34,0.00012876,2]
[338954537,1727089838654,-500.0,0.00012876,2]
[338954538,1727089838664,-500.0,0.00012876,2]
[338954539,1727089838673,-500.0,0.00012876,2]
[338954540,1727089838683,-500.0,0.00012876,2]
[338954541,1727089838692,-500.0,0.00012876,2]
[338954542,1727089838702,-500.0,0.00012876,2]
[338954544,1727089838712,-500.0,0.00012876,2]
[338954546,1727089838721,-574.67996333,0.00012876,2]
[338954548,1727089838731,-500.0,0.00012876,2]
[338954549,1727089838741,-725.04,0.00012876,2]
[338954550,1727089838751,-725.04,0.00012876,2]
[338954551,1727089838761,-725.04,0.00012876,2]
[338954552,1727089838771,-500.0,0.00012876,2]
[338954554,1727089838780,-500.0,0.00012876,2]
[338954555,1727089838790,-500.0,0.00012876,2]
[338954556,1727089838799,-500.0,0.00012876,2]
[338954557,1727089838809,-500.0,0.00012876,2]
[338954558,1727089838818,-500.0,0.00012876,2]
[338954559,1727089838827,-500.0,0.00012876,2]
[338954561,1727089838837,-500.0,0.00012876,2]
[338954563,1727089838846,-500.0,0.00012876,2]
[338954565,1727089838855,-500.0,0.00012876,2]
[338954567,1727089838865,-500.0,0.00012876,2]
[338954569,1727089838875,-500.0,0.00012876,2]
[338954571,1727089838884,-500.0,0.00012876,2]
[338954572,1727089838894,-500.0,0.00012876,2]
[338954573,1727089838903,-500.0,0.00012876,2]
[338954574,1727089838912,-500.0,0.00012876,2]
[338954575,1727089838922,-500.0,0.00012876,2]
[338954576,1727089838931,-500.0,0.00012876,2]
[338954577,1727089838940,-500.0,0.00012876,2]
[338954578,1727089838950,-500.0,0.00012876,2]
[338954579,1727089838959,-576.15,0.00012876,2]
[338954580,1727089838970,-500.0,0.00012876,2]
[338954581,1727089838979,-500.0,0.00012876,2]
[338954582,1727089838988,-500.0,0.00012876,2]
[338954583,1727089838998,-500.0,0.00012876,2]
[338954584,1727089839007,-500.0,0.00012876,2]
[338954585,1727089839017,-500.0,0.00012876,2]
[338954586,1727089839026,-500.0,0.00012876,2]
[338954587,1727089839036,-500.0,0.00012876,2]
[338954588,1727089839046,-500.0,0.00012876,2]
[338954589,1727089839056,-500.0,0.00012876,2]
[338954590,1727089839066,-500.0,0.00012876,2]
[338954591,1727089839075,-767.25,0.00012876,2]
[338954592,1727089839085,-500.0,0.00012876,2]
[338954593,1727089839094,-500.0,0.00012876,2]
[338954594,1727089839104,-501.93,0.00012876,2]
[338954595,1727089839113,-501.93,0.00012876,2]
[338954596,1727089839122,-500.0,0.00012876,2]
[338954597,1727089839131,-500.0,0.00012876,2]
[338954598,1727089839149,-916.1,0.00012876,2]
[338954599,1727089839161,-916.1,0.00012876,2]
[338954600,1727089839171,-500.0,0.00012876,2]
[338954601,1727089839180,-732.55,0.00012876,2]
[338954602,1727089839189,-732.55,0.00012876,2]
[338954603,1727089839198,-732.55,0.00012876,2]
[338954604,1727089839208,-500.0,0.00012876,2]
[338954605,1727089839218,-500.0,0.00012876,2]
[338954606,1727089839228,-500.0,0.00012876,2]
[338954607,1727089839237,-152.88262553,0.00012876,2]
[338954608,1727089839247,-595.84349764,0.00012876,2]
[338954609,1727089839262,-588.7933097,0.00012876,2]
[338954610,1727089839272,-500.0,0.00012876,2]
[338954611,1727089839282,-500.0,0.00012876,2]
[338954612,1727089839291,-500.0,0.00012876,2]
[338954613,1727089839301,-500.0,0.00012876,2]
[338954614,1727089839310,-500.0,0.00012876,2]
[338954615,1727089839320,-1082.17,0.00012876,2]
[338954616,1727089839330,-500.0,0.00012876,2]
[338954617,1727089839339,-500.0,0.00012876,2]
[338954618,1727089839349,-500.0,0.00012876,2]
[338954619,1727089839359,-500.0,0.00012876,2]
[338954620,1727089839369,-500.0,0.00012876,2]
[338954621,1727089839377,-1042.99,0.00012876,2]
[338954622,1727089839387,-396.92,0.00012876,2]
[338954623,1727089839396,-500.0,0.00012876,2]
[338954624,1727089839405,-500.0,0.00012876,2]
[338954625,1727089839414,-436.59900106,0.00012876,2]
[338954626,1727089839423,-502.66171986,0.00012876,2]
[338954627,1727089839432,-500.0,0.00012876,2]
[338954628,1727089839442,-500.0,0.00012876,2]
[338954629,1727089839456,-500.0,0.00012876,2]
[338954630,1727089839466,-500.0,0.00012876,2]
[338954631,1727089839476,-500.0,0.00012876,2]
[338954632,1727089839486,-500.0,0.00012876,2]
[338954633,1727089839497,-500.0,0.00012876,2]
[338954634,1727089839512,-500.0,0.00012876,2]
[338954635,1727089839521,-500.0,0.00012876,2]
[338954636,1727089839534,-500.0,0.00012876,2]
[338954637,1727089839544,-500.0,0.00012876,2]
[338954638,1727089839554,-500.0,0.00012876,2]
[338954639,1727089839563,-500.0,0.00012876,2]
[338954640,1727089839574,-500.0,0.00012876,2]
[338954641,1727089839584,-500.0,0.00012876,2]
[338954642,1727089839595,-500.0,0.00012876,2]
[338954643,1727089839606,-500.0,0.00012876,2]
[338954644,1727089839615,-500.0,0.00012876,2]
[338954645,1727089839625,-500.0,0.00012876,2]
[338954646,1727089839635,-500.0,0.00012876,2]
[338954647,1727089839645,-500.0,0.00012876,2]
[338954648,1727089839656,-500.0,0.00012876,2]
[338954649,1727089839668,-500.0,0.00012876,2]
[338954650,1727089839678,-500.0,0.00012876,2]
[338954651,1727089839688,-500.0,0.00012876,2]
[338954652,1727089839697,-500.0,0.00012876,2]
[338954653,1727089839708,-500.0,0.00012876,2]
[338954654,1727089839719,-500.0,0.00012876,2]
[338954655,1727089839728,-500.0,0.00012876,2]
[338954656,1727089839738,-500.000001,0.00012876,2]
[338954657,1727089839748,-276.10772222,0.00012876,2]
[338954658,1727089839764,-500.0,0.00012876,2]
[338954659,1727089839774,-500.0,0.00012876,2]
[338954660,1727089839784,-536.62,0.00012876,2]
[338954661,1727089839793,-500.0,0.00012876,2]
[338954662,1727089839804,-536.62,0.00012876,2]
[338954663,1727089839814,-500.0,0.00012876,2]
[338954664,1727089839824,-500.0,0.00012876,2]
[338954665,1727089839834,-500.0,0.00012876,2]
[338954666,1727089839844,-500.0,0.00012876,2]
[338954667,1727089839854,-500.0,0.00012876,2]
[338954668,1727089839864,-500.0,0.00012876,2]
[338954669,1727089839875,-323.90983499,0.00012876,2]
[338954670,1727089839885,-500.0,0.00012876,2]
[338954671,1727089839895,-500.0,0.00012876,2]
[338954672,1727089839905,-500.0,0.00012876,2]
[338954673,1727089839914,-500.0,0.00012876,2]
[338954674,1727089839924,-500.0,0.00012876,2]
[338954675,1727089839936,-500.0,0.00012876,2]
[338954676,1727089839946,-500.0,0.00012876,2]
[338954678,1727089839957,-500.0,0.00012876,2]
[338954680,1727089839967,-500.0,0.00012876,2]
[338954682,1727089839977,-500.0,0.00012876,2]
[338954683,1727089839987,-500.0,0.00012876,2]
[338954684,1727089839997,-500.0,0.00012876,2]
[338954685,1727089840009,-500.0,0.00012876,2]
[338954686,1727089840018,-500.0,0.00012876,2]
[338954687,1727089840028,-500.0,0.00012876,2]
[338954688,1727089840038,-979.78,0.00012876,2]
[338954689,1727089840047,-979.78,0.00012876,2]
[338954690,1727089840057,-500.0,0.00012876,2]
[338954691,1727089840067,-500.0,0.00012876,2]
[338954692,1727089840076,-1483.18,0.00012876,2]
[338954693,1727089840086,-500.0,0.00012876,2]
[338954694,1727089840097,-500.0,0.00012876,2]
[338954695,1727089840107,-500.0,0.00012876,2]
[338954696,1727089840119,-500.0,0.00012876,2]
[338954697,1727089840128,-500.0,0.00012876,2]
[338954698,1727089840138,-500.0,0.00012876,2]
[338954699,1727089840148,-500.0,0.00012876,2]
[338954700,1727089840158,-500.0,0.00012876,2]
[338954701,1727089840168,-500.0,0.00012876,2]
[338954702,1727089840178,-500.0,0.00012876,2]
[338954703,1727089840187,-500.0,0.00012876,2]
[338954704,1727089840197,-612.97,0.00012876,2]
[338954705,1727089840207,-612.97,0.00012876,2]
[338954706,1727089840217,-500.0,0.00012876,2]
[338954707,1727089840227,-500.0,0.00012876,2]
[338954708,1727089840236,-500.0,0.00012876,2]
[338954709,1727089840246,-533.64534423,0.00012876,2]
[338954710,1727089840259,-500.0,0.00012876,2]
[338954711,1727089840268,-500.0,0.00012876,2]
[338954712,1727089840278,-500.0,0.00012876,2]
[338954714,1727089840288,-500.0,0.00012876,2]
[338954715,1727089840297,-500.0,0.00012876,2]
[338954717,1727089840306,-500.0,0.00012876,2]
[338954719,1727089840316,-500.0,0.00012876,2]
[338954721,1727089840325,-500.0,0.00012876,2]
[338954722,1727089840334,-500.0,0.00012876,2]
[338954723,1727089840343,-500.0,0.00012876,2]
[338954724,1727089840353,-500.0,0.00012876,2]
[338954725,1727089840362,-500.0,0.00012876,2]
[338954726,1727089840372,-500.0,0.00012876,2]
[338954727,1727089840381,-500.0,0.00012876,2]
[338954728,1727089840391,-3263.86,0.00012876,2]
[338954729,1727089840401,-500.0,0.00012876,2]
[338954730,1727089840410,-500.0,0.00012876,2]
[338954731,1727089840420,-500.0,0.00012876,2]
[338954732,1727089840429,-296.23679422,0.00012876,2]
[338954733,1727089840439,-500.0,0.00012876,2]
[338954734,1727089840449,-500.0,0.00012876,2]
[338954735,1727089840461,-500.0,0.00012876,2]
[338954736,1727089840471,-500.0,0.00012876,2]
[338954737,1727089840481,-500.0,0.00012876,2]
[338954738,1727089840492,-500.0,0.00012876,2]
[338954739,1727089840502,-500.0,0.00012876,2]
[338954740,1727089840511,-939.79,0.00012876,2]
[338954741,1727089840521,-500.0,0.00012876,2]
[338954742,1727089840532,-500.0,0.00012876,2]
[338954743,1727089840541,-515.0,0.00012876,2]
[338954744,1727089840551,-500.0,0.00012876,2]
[338954745,1727089840561,-515.0,0.00012876,2]
[338954746,1727089840572,-500.0,0.00012876,2]
[338954747,1727089840582,-500.0,0.00012876,2]
[338954748,1727089840591,-500.0,0.00012876,2]
[338954750,1727089840601,-500.0,0.00012876,2]
[338954751,1727089840611,-916.85,0.00012876,2]
[338954752,1727089840620,-500.0,0.00012876,2]
[338954753,1727089840630,-502.83025352,0.00012876,2]
[338954754,1727089840640,-500.0,0.00012876,2]
[338954755,1727089840650,-500.0,0.00012876,2]
[338954756,1727089840659,-500.0,0.00012876,2]
[338954757,1727089840669,-500.0,0.00012876,2]
[338954758,1727089840679,-500.0,0.00012876,2]
[338954759,1727089840689,-500.0,0.00012876,2]
[338954760,1727089840698,-1228.6,0.00012876,2]
[338954761,1727089840708,-500.0,0.00012876,2]
[338954762,1727089840718,-362.2616938,0.00012876,2]
[338954763,1727089840727,-624.43,0.00012876,2]
[338954764,1727089840737,-624.43,0.00012876,2]
[338954765,1727089840746,-500.0,0.00012876,2]
[338954766,1727089840757,-530.8,0.00012876,2]
[338954767,1727089840767,-500.0,0.00012876,2]
[338954769,1727089840777,-530.8,0.00012876,2]
[338954771,1727089840787,-500.0,0.00012876,2]
[338954773,1727089840797,-500.0,0.00012876,2]
[338954774,1727089840807,-500.0,0.00012876,2]
[338954775,1727089840817,-522.93,0.00012876,2]
[338954776,1727089840827,-500.0,0.00012876,2]
[338954777,1727089840838,-500.0,0.00012876,2]
[338954778,1727089840848,-500.0,0.00012876,2]
[338954779,1727089840858,-500.0,0.00012876,2]
[338954780,1727089840867,-233.69,0.00012876,2]
[338954781,1727089840877,-343.34715687,0.00012876,2]
[338954782,1727089840886,-895.24,0.00012876,2]
[338954783,1727089840897,-895.24,0.00012876,2]
[338954784,1727089840906,-500.0,0.00012876,2]
[338954785,1727089840915,-487.44991157,0.00012876,2]
[338954786,1727089840925,-500.0,0.00012876,2]
[338954787,1727089840934,-500.0,0.00012876,2]
[338954788,1727089840943,-500.0,0.00012876,2]
[338954789,1727089840953,-500.0,0.00012876,2]
[338954790,1727089840963,-500.0,0.00012876,2]
[338954791,1727089840973,-500.0,0.00012876,2]
[338954792,1727089840983,-500.0,0.00012876,2]
[338954793,1727089840993,-500.0,0.00012876,2]
[338954794,1727089841006,-1098.04,0.00012876,2]
[338954795,1727089841015,-500.0,0.00012876,2]
[338954796,1727089841027,-500.0,0.00012876,2]
[338954797,1727089841037,-500.0,0.00012876,2]
[338954798,1727089841047,-500.0,0.00012876,2]
[338954799,1727089841056,-500.0,0.00012876,2]
[338954800,1727089841065,-500.0,0.00012876,2]
[338954801,1727089841074,-500.0,0.00012876,2]
[338954802,1727089841084,-500.0,0.00012876,2]
[338954803,1727089841093,-500.0,0.00012876,2]
[338954804,1727089841103,-762.79,0.00012876,2]
[338954805,1727089841112,-500.0,0.00012876,2]
[338954806,1727089841121,-500.0,0.00012876,2]
[338954807,1727089841131,-189.16748134,0.00012876,2]
[338954808,1727089841141,-500.0,0.00012876,2]
[338954809,1727089841150,-500.0,0.00012876,2]
[338954810,1727089841165,-500.0,0.00012876,2]
[338954811,1727089841175,-500.0,0.00012876,2]
[338954812,1727089841184,-500.0,0.00012876,2]
[338954813,1727089841194,-500.0,0.00012876,2]
[338954814,1727089841204,-500.0,0.00012876,2]
[338954815,1727089841213,-500.0,0.00012876,2]
[338954816,1727089841223,-500.0,0.00012876,2]
[338954817,1727089841232,-500.0,0.00012876,2]
[338954818,1727089841242,-535.00249759,0.00012876,2]
[338954819,1727089841256,-1192.12,0.00012876,2]
[338954820,1727089841267,-1192.12,0.00012876,2]
[338954821,1727089841276,-500.0,0.00012876,2]
[338954822,1727089841288,-500.0,0.00012876,2]
[338954823,1727089841298,-500.0,0.00012876,2]
[338954824,1727089841307,-500.0,0.00012876,2]
[338954825,1727089841316,-500.0,0.00012876,2]
[338954826,1727089841325,-543.65,0.00012876,2]
[338954827,1727089841335,-500.0,0.00012876,2]
[338954828,1727089841348,-500.0,0.00012876,2]
[338954829,1727089841358,-988.1,0.00012876,2]
[338954830,1727089841367,-988.1,0.00012876,2]
[338954831,1727089841377,-2147.93,0.00012876,2]
[338954832,1727089841386,-500.0,0.00012876,2]
[338954833,1727089841395,-1002.01,0.00012876,2]
[338954834,1727089841405,-1002.01,0.00012876,2]
[338954835,1727089841415,-500.0,0.00012876,2]
[338954836,1727089841425,-614.63,0.00012876,2]
[338954837,1727089841434,-500.0,0.00012876,2]
[338954838,1727089841444,-500.0,0.00012876,2]
[338954839,1727089841456,-500.0,0.00012876,2]
[338954840,1727089841466,-500.0,0.00012876,2]
[338954841,1727089841475,-500.0,0.00012876,2]
[338954842,1727089841485,-500.0,0.00012876,2]
[338954843,1727089841494,-810.2,0.00012876,2]
[338954844,1727089841510,-500.0,0.00012876,2]
[338954845,1727089841520,-810.2,0.00012876,2]
[338954846,1727089841533,-500.0,0.00012876,2]
[338954847,1727089841543,-1746.95,0.00012876,2]
[338954848,1727089841554,-1746.95,0.00012876,2]
[338954849,1727089841564,-500.0,0.00012876,2]
[338954850,1727089841574,-500.0,0.00012876,2]
[338954851,1727089841584,-1187.34,0.00012876,2]
[338954852,1727089841594,-500.0,0.00012876,2]
[338954853,1727089841604,-500.0,0.00012876,2]
[338954854,1727089841614,-500.0,0.00012876,2]
[338954855,1727089841623,-500.0,0.00012876,2]
[338954856,1727089841633,-500.0,0.00012876,2]
[338954857,1727089841642,-500.0,0.00012876,2]
[338954858,1727089841652,-500.0,0.00012876,2]
[338954859,1727089841661,-173.18222128,0.00012876,2]
[338954860,1727089841671,-500.0,0.00012876,2]
[338954861,1727089841681,-500.0,0.00012876,2]
[338954862,1727089841691,-500.0,0.00012876,2]
[338954863,1727089841700,-500.0,0.00012876,2]
[338954864,1727089841710,-500.0,0.00012876,2]
[338954865,1727089841719,-500.0,0.00012876,2]
[338954866,1727089841729,-500.0,0.00012876,2]
[338954867,1727089841739,-500.0,0.00012876,2]
[338954868,1727089841748,-628.32,0.00012876,2]
[338954869,1727089841762,-1542.18,0.00012876,2]
[338954870,1727089841772,-1542.18,0.00012876,2]
[338954871,1727089841782,-1688.58,0.00012876,2]
[338954872,1727089841791,-1688.58,0.00012876,2]
[338954873,1727089841801,-500.0,0.00012876,2]
[338954874,1727089841811,-4081.23,0.00012876,2]
[338954875,1727089841820,-4081.23,0.00012876,2]
[338954876,1727089841830,-500.0,0.00012876,2]
[338954877,1727089841840,-500.0,0.00012876,2]
[338954878,1727089841851,-500.0,0.00012876,2]
[338954879,1727089841861,-633.41,0.00012876,2]
[338954880,1727089841872,-633.41,0.00012876,2]
[338954881,1727089841882,-730.69,0.00012876,2]
[338954882,1727089841893,-500.0,0.00012876,2]
[338954883,1727089841903,-500.0,0.00012876,2]
[338954884,1727089841913,-184.68,0.00012876,2]
[338954885,1727089841923,-500.0,0.00012876,2]
[338954886,1727089841932,-2354.99,0.00012876,2]
[338954887,1727089841942,-2354.99,0.00012876,2]
[338954888,1727089841951,-500.0,0.00012876,2]
[338954889,1727089841961,-779.72,0.00012876,2]
[338954890,1727089841970,-941.99,0.00012876,2]
[338954891,1727089841980,-941.99,0.00012876,2]
[338954892,1727089841990,-500.0,0.00012876,2]
[338954893,1727089842000,-500.0,0.00012876,2]
[338954894,1727089842012,-839.9,0.00012876,2]
[338954895,1727089842022,-839.9,0.00012876,2]
[338954896,1727089842031,-500.0,0.00012876,2]
[338954897,1727089842040,-500.0,0.00012876,2]
[338954898,1727089842050,-688.12,0.00012876,2]
[338954899,1727089842060,-500.0,0.00012876,2]
[338954900,1727089842069,-500.0,0.00012876,2]
[338954901,1727089842079,-500.0,0.00012876,2]
[338954902,1727089842088,-500.0,0.00012876,2]
[338954903,1727089842097,-500.0,0.00012876,2]
[338954904,1727089842108,-3116.47,0.00012876,2]
[338954905,1727089842117,-3116.47,0.00012876,2]
[338954906,1727089842126,-1717.45,0.00012876,2]